Cogmind - Beta 11.1 @@@ ROGUE MODE // 2022.07.03 @ 14:27:15 Player: Jezoensis Result: Establishing 0b11! Performance ------------- Evolutions (9) 4500 Regions Visited (25) 5000 Robots Destroyed (256) 1280 Value Destroyed (10971) 10971 Prototype IDs (299) 5980 Alien Tech Used (3) 600 Bonus (27227) 27227 TOTAL SCORE: 55558 Bonus ------- High Alert Combat Kills 845 Follower Combat Kills 1336 Entered DSFs 1000 Network Hubs Disabled 200 Aligned with FarCom 300 Met Zhirov 300 Built Enhanced Grunts 300 A7 Reached Mainframe 300 Destroyed MAIN.C Guards 500 Met MAIN.C 5000 Hacked MAIN.C 300 Destroyed MAIN.C Shell 5000 Destroyed MAIN.C 10000 Win 3000 Friendly Fire -1154 Cogmind --------- Core Integrity 940/1600 Matter 87/300 Energy 99/100 System Corruption 17% Temperature Cool (0) Movement Core (50) Location 0b11 Command Parts ------- > --- POWER (2) -------- (None) > --- PROPULSION (6) --- (None) > --- UTILITY (14) ----- (None) > --- WEAPON (4) ------- (None) > --- INVENTORY (5) ---- (None) Peak State ------------ > --- POWER ------------ Heavy Antimatter Reactor Zero-point Reactor > --- PROPULSION ------- Enhanced Armored Heavy Treads Advanced Heavy Siege Treads Advanced Heavy Siege Treads > --- UTILITY ---------- Improved Cryofiber Web Advanced Heat Sink Huge Storage Unit Experimental Energy Well Matter Compressor Enhanced Optical Array Advanced Salvage Targeting Computer Advanced Target Analyzer Advanced Target Analyzer Core Analyzer Advanced Transmission Jammer Thermal Barrier EM Disruption Field Advanced Force Field > --- WEAPON ----------- Tri-rail Accelerator Linear Accelerator Advanced Remote Datajack > --- INVENTORY -------- Reinforced Antimatter Reactor Quantum Reactor Quantum Reactor Biometal Heavy Treads Biometal Heavy Treads Experimental Cooling System Experimental Cooling System Matter Compressor Advanced Terrain Scanner Advanced Target Analyzer Advanced Transmission Jammer Advanced Focal Shield Experimental Thermal Shield Advanced Shield Generator Force Field Long-range Tractor Beam Cooled Nova Cannon Railgun Linear Accelerator Linear Accelerator Linear Accelerator Linear Accelerator Linear Accelerator [Rating: 207] Favorites ----------- Power Particle Reactor Engine Cooled Ion Engine Power Core Micro Fission Core Reactor Particle Reactor Propulsion Heavy Treads Treads Heavy Treads Wheel Wheel Utility Huge Storage Unit Device Advanced Terrain Scanner Storage Huge Storage Unit Processor Improved Terrain Scan Processor Hackware Improved Hacking Suite Protection Experimental Utility Shielding Weapon Enhanced Autogun Energy Gun Improved EM Shotgun Energy Cannon Nova Cannon Ballistic Gun Enhanced Autogun Ballistic Cannon Linear Accelerator Launcher EMP Blaster Special Weapon Mining Laser Impact Weapon Power Maul Build | -11 -10 -10 -9 -9 -9 -8 -8 -7 -6 -6 -5 -5 -5 -5 -5 -4 -4 -4 -4 -3 -3 -3 -2 -1 -1 ------- Run | Scr Mat Min Mat Min Exi Min Mat Fac Fac DSF Fac Ext Cet Arc Hub Fac Upp Upp Zhi Pro Res DSF Res Acc Com Slots Evolved 18 | . . . 2 . . . 2 2 2 . 2 . . . . 2 . . . . 2 . 2 2 . Power 1 | . . . . . . . . . . . 1 . . . . . . . . . . . . . . Propulsion 3 | . . . 1 . . . . . 1 . . . . . . 1 . . . . . . . . . Utility 12 | . . . 1 . . . 1 2 . . 1 . . . . 1 . . . . 2 . 2 2 . Weapon 2 | . . . . . . . 1 . 1 . . . . . . . . . . . . . . . . Parts Attached 492 | 8 10 9 36 6 3 2 37 6 8 20 56 42 19 8 12 21 8 13 7 12 8 1 43 15 82 Power 26 | 1 . . 3 . . . . 1 . 1 4 3 . 1 1 2 . . 1 . . . 2 2 4 Engine 6 | 1 . . 3 . . . . 1 . . . . . . 1 . . . . . . . . . . Core 8 | . . . . . . . . . . 1 4 3 . . . . . . . . . . . . . Reactor 12 | . . . . . . . . . . . . . . 1 . 2 . . 1 . . . 2 2 4 Propulsion 63 | 3 3 4 14 1 . . 13 1 2 5 1 1 1 . . 3 . . . 2 . . 5 1 3 Treads 39 | . 1 2 7 . . . 6 . 1 5 1 1 1 . . 3 . . . 2 . . 5 1 3 Leg . | . . . . . . . . . . . . . . . . . . . . . . . . . . Wheel 24 | 3 2 2 7 1 . . 7 1 1 . . . . . . . . . . . . . . . . Hover . | . . . . . . . . . . . . . . . . . . . . . . . . . . Flight . | . . . . . . . . . . . . . . . . . . . . . . . . . . Utility 264 | 2 1 1 13 3 1 . 12 4 3 10 32 26 12 4 9 10 7 7 1 6 5 1 27 11 56 Device 206 | 1 . . 6 3 . . 9 3 2 7 27 21 10 4 8 7 7 6 1 6 5 . 22 6 45 Storage 14 | 1 1 1 1 . 1 . . . . 1 . . . . . . . . . . . . . 1 7 Processor 16 | . . . 1 . . . 3 1 1 . 2 . . . . . . . . . . 1 2 3 2 Hackware 8 | . . . . . . . . . . . . 2 . . 1 1 . . . . . . 3 . 1 Protection 20 | . . . 5 . . . . . . 2 3 3 2 . . 2 . 1 . . . . . 1 1 Artifact . | . . . . . . . . . . . . . . . . . . . . . . . . . . Weapon 139 | 2 6 4 6 2 2 2 12 . 3 4 19 12 6 3 2 6 1 6 5 4 3 . 9 1 19 Energy Gun 10 | . . . 2 . . . 4 . . 2 1 . . 1 . . . . . . . . . . . Energy Cannon 17 | . . . . . . . . . . . 3 1 . . 1 2 . 2 . 1 1 . 3 . 3 Ballistic Gun 75 | 2 2 1 4 1 2 1 4 . 2 . 9 7 6 2 1 4 1 4 4 3 2 . 5 1 7 Ballistic Cannon 9 | . . . . . . . . . . . . . . . . . . . . . . . 1 . 8 Launcher 13 | . 2 2 . 1 . 1 1 . . 1 1 4 . . . . . . . . . . . . . Special Weapon 5 | . 2 1 . . . . 1 . . . . . . . . . . . . . . . . . 1 Impact Weapon 10 | . . . . . . . 2 . 1 1 5 . . . . . . . 1 . . . . . . Slashing Weapon . | . . . . . . . . . . . . . . . . . . . . . . . . . . Piercing Weapon . | . . . . . . . . . . . . . . . . . . . . . . . . . . Special Melee Weapon . | . . . . . . . . . . . . . . . . . . . . . . . . . . Unidentified Prototypes 22 | . . . 3 . . . 2 . 2 1 . . 2 . 1 . . . 2 1 1 1 2 . 4 Corrupted Parts 4 | . . . . . . . . . . . 1 . 2 . 1 . . . . . . . . . . System Corruption 19 | . . . . . . . . . . . 4 . 11 . 4 . . . . . . . . . . Parts Lost 28 | . . . 1 . . . . . . . . 5 1 . . . . 2 . 1 . . . . 18 Power 2 | . . . . . . . . . . . . . . . . . . . . . . . . . 2 Propulsion 7 | . . . 1 . . . . . . . . 1 . . . . . . . . . . . . 5 Utility 10 | . . . . . . . . . . . . 3 . . . . . 1 . . . . . . 6 Weapon 9 | . . . . . . . . . . . . 1 1 . . . . 1 . 1 . . . . 5 Highest Loss Streak 11 | . . . 1 . . . . . . . . 5 1 . . . . 2 . 1 . . . . 11 To Critical Strikes . | . . . . . . . . . . . . . . . . . . . . . . . . . . Average Slot Usage (%) 89 | . 100 100 98 100 86 100 100 99 99 95 87 87 84 88 88 89 89 88 67 89 89 88 87 87 83 Engine 3 | . 14 14 11 11 11 11 9 7 6 4 . . . . . 5 5 5 2 . . . . . . Core 2 | . . . . . . . . . . 1 10 11 11 7 4 . . . . . . . . . . Reactor 3 | . . . . . . . . . . . . . . 2 5 5 5 5 7 10 9 9 8 7 6 Treads 11 | . . 22 10 11 11 11 9 7 6 18 11 10 11 11 11 15 15 15 15 17 18 18 12 11 10 Wheel 4 | . 27 5 22 22 22 22 17 14 19 3 . . . . . . . . . . . . . . . Device 14 | . 14 14 9 11 11 11 9 15 12 11 11 9 6 17 11 11 21 21 16 20 26 24 18 19 18 Storage 6 | . 14 14 11 11 11 11 9 7 6 6 5 5 5 5 5 5 5 5 5 5 4 4 4 3 5 Processor 14 | . . . 7 11 11 11 17 23 20 20 17 14 11 11 11 10 10 10 10 10 9 9 13 17 20 Hackware 2 | . . . . . . . . . . . . 2 10 . 4 9 . . . . . . 7 7 3 Protection 3 | . . . 4 . . . . . . 1 4 5 4 5 5 4 5 5 5 5 4 4 4 2 2 Ballistic Gun 16 | . 19 1 20 21 9 22 17 15 20 20 19 20 19 21 22 16 19 20 . 17 14 18 13 11 8 Naked Turns 36 | . . . . . . . . . . . . . . . . . . . . . . . . . 36 Heaviest Build 178 | 14 21 33 56 55 55 55 59 60 63 105 124 136 129 132 141 144 145 145 147 153 161 155 158 173 178 Greatest Support 240 | 26 20 40 40 20 20 20 20 20 30 140 140 140 150 150 150 180 180 180 180 207 207 207 230 235 240 Greatest Overweight (x) 5 | . 1 1 2 2 2 2 2 5 3 3 . . . . . . . . . . . . . . . Average Overweight (x) . | . . . . 2 2 2 2 2 2 . . . . . . . . . . . . . . . . Largest Inventory Capacity 25 | 8 10 15 20 20 20 20 20 20 20 25 25 25 25 25 25 25 25 25 25 25 25 25 25 25 25 Average Capacity 23 | 5 8 12 15 20 20 20 20 20 20 21 25 25 25 25 25 25 25 25 25 25 25 25 25 25 24 Most Carried 25 | 6 10 11 19 20 20 20 20 20 20 22 25 25 25 25 25 25 25 24 25 25 25 25 25 25 25 Average Carried 22 | 4 7 10 14 19 19 20 19 18 19 19 24 24 24 23 24 24 23 22 24 24 23 24 24 24 23 Final Capacity 25 | 8 10 15 20 20 20 20 20 20 20 25 25 25 25 25 25 25 25 25 25 25 25 25 25 25 5 Final Carried 25 | 6 10 11 19 20 20 20 20 20 19 21 25 25 22 24 25 24 24 23 25 23 25 25 25 25 . Class Distribution -------------------- 17% | Scavenger-Skirmisher 17% | Scavenger-Mutant 14% | Skirmisher 11% | Assassin 11% | Mutant 11% | Hacker-Mutant 6% | Hacker-Skirmisher Dominant Class ---------------- Mutant | -10/Materials Mutant | -10/Mines Scavenger-Mutant | -9/Materials Scavenger-Mutant | -9/Mines Scavenger-Mutant | -9/Exiles Scavenger-Skirmisher | -8/Mines Skirmisher | -8/Materials Assassin | -7/Factory Assassin | -6/Factory Skirmisher | -6/DSF Skirmisher | -5/Factory Scavenger-Skirmisher | -5/Extension Scavenger-Skirmisher | -5/Cetus Commander-Skirmisher | -5/Archives Scavenger-Skirmisher | -5/Hub_04(d) Scavenger-Mutant | -4/Factory Scavenger-Skirmisher | -4/Upper Caves Scavenger-Skirmisher | -4/Upper Caves Assassin | -4/Zhirov Scavenger-Mutant | -3/Proximity Caves Scavenger-Mutant | -3/Research Scavenger-Skirmisher | -3/DSF Hacker-Mutant | -2/Research Hacker-Mutant | -1/Access Gunner | -1/Command Resources | -11 -10 -10 -9 -9 -9 -8 -8 -7 -6 -6 -5 -5 -5 -5 -5 -4 -4 -4 -4 -3 -3 -3 -2 -1 -1 ----------- Run | Scr Mat Min Mat Min Exi Min Mat Fac Fac DSF Fac Ext Cet Arc Hub Fac Upp Upp Zhi Pro Res DSF Res Acc Com Matter Collected 13091 | 215 167 120 804 178 41 91 823 . . 544 1675 1064 446 332 297 356 253 480 . 323 . 7 1369 117 3389 Remotely 6190 | . . . . . . . . . . . 1034 654 315 170 . 246 220 379 . 238 . . 429 . 2505 Salvage Created 13728 | 38 50 . 828 149 . 81 1166 . . 445 2103 785 351 189 603 514 230 911 . 231 . . 1937 117 3000 Parts 660 | 6 9 . 47 23 . 2 74 . . 25 100 34 12 11 21 27 14 34 . 12 . . 101 5 103 Haulers Intercepted 11 | . . . 4 . . . 5 . . . . . . . 2 . . . . . . . . . . Recyclers Shooed 15 | 1 . . . 1 . . . . . . 5 1 . . 3 . . . . . . . 2 . 2 Parts Field Recycled . | . . . . . . . . . . . . . . . . . . . . . . . . . . Retrieved Matter . | . . . . . . . . . . . . . . . . . . . . . . . . . . Parts Self-Destructed 59 | . . . . . . . . . . . . . . . . . 12 35 . 12 . . . . . Prevented 5 | . . . . . . . . . . . . . . . . . 2 3 . . . . . . . Kills | -11 -10 -10 -9 -9 -9 -8 -8 -7 -6 -6 -5 -5 -5 -5 -5 -4 -4 -4 -4 -3 -3 -3 -2 -1 -1 ------- Run | Scr Mat Min Mat Min Exi Min Mat Fac Fac DSF Fac Ext Cet Arc Hub Fac Upp Upp Zhi Pro Res DSF Res Acc Com Combat Hostiles Destroyed 174 | . 4 3 13 7 . . 22 . . 10 17 13 7 1 1 6 3 13 . 3 . . 20 . 31 Guns 137 | . 1 . 13 3 . . 20 . . 7 14 7 7 1 1 5 3 13 . 3 . . 20 . 19 Cannons 12 | . . . . . . . . . . . . . . . . . . . . . . . . . 12 AOE 23 | . 3 3 . 4 . . 2 . . 3 3 4 . . . 1 . . . . . . . . . Classes Destroyed 20 | 1 2 1 4 1 . 1 2 . . 4 1 2 . . . . . . . . . . . . 1 Worker 20 | . . . 1 . . . 4 . . . 2 . . . 5 2 . . . . . . 1 . 5 Builder 12 | . . . . 2 . . 1 . . . 6 1 . . 1 1 . . . . . . . . . Tunneler 8 | 2 . . 1 2 . . 1 . . . . 1 . . . . . . . . . . 1 . . Hauler 11 | . . . 4 . . . 5 . . . . . . . 2 . . . . . . . . . . Recycler 21 | . . . . . . 1 . . . . 7 1 . . . 1 . . . . . . 3 1 7 Carrier 1 | . . . . . . . . . . . . . . . . . . . . . . . . . 1 Operator 4 | . . . . . . . . . . . . 1 . 3 . . . . . . . . . . . Watcher 6 | . . . 2 . . . 1 . . . 1 2 . . . . . . . . . . . . . Swarmer 32 | . 3 . . 7 . . 8 . . . . 5 3 . . . . 1 . . . . 5 . . Cutter 3 | . . . . . . . . . . 3 . . . . . . . . . . . . . . . Grunt 62 | . 1 . 11 . . . 8 . . 4 5 1 1 . . 2 3 8 . 3 . . 7 . 8 Brawler 5 | . . . . . . . 1 . . . 1 . 1 . . . . 1 . . . . . . 1 Duelist 7 | . . . . . . . 1 . . . . 1 . . . . . 2 . . . . . . 3 Sentry 20 | . . . 2 . . . 4 . . . 3 4 . 1 1 2 . 1 . . . . 1 . 1 Specialist 5 | . . . . . . . . . . 1 2 . . . . . . . . . . . 2 . . Hunter 3 | . . . . . . . . . . 1 . . . . . . . . . . . . . . 2 Programmer 23 | . . . . . . . . . . . 6 . . . . 2 . . . . . . 4 . 11 Heavy 1 | . . . . . . . . . . 1 . . . . . . . . . . . . . . . Behemoth 3 | . . . . . . . . . . . . 2 . . . . . . . . . . 1 . . Cetus Guard 2 | . . . . . . . . . . . . . 2 . . . . . . . . . . . . M Guard 1 | . . . . . . . . . . . . . . . . . . . . . . . . . 1 Enhanced Grunt 2 | . . . . . . . . . . . . . . . 2 . . . . . . . . . . Combat Programmer 2 | . . . . . . . . . . . . . . . . . . . . . . . . . 2 Assembled 3 | . . 3 . . . . . . . . . . . . . . . . . . . . . . . Best Kill Streak 11 | 2 3 2 5 4 . 1 6 . . 5 8 7 5 2 6 6 3 11 . 3 . . 11 1 5 Combat Bots Only 11 | . 3 2 3 4 . . 4 . . 5 7 5 5 1 1 4 3 11 . 3 . . 11 . 4 Max Kills in Single Turn 7 | 1 3 1 2 2 . 1 2 . . 3 3 5 1 1 7 2 1 2 . 2 . . 3 1 2 Gunslinging 2 | . . . 1 . . . 1 . . . . . . . . . . 1 . 1 . . 2 . 1 Exploded 3 | . 3 1 . 2 . . 2 . . 3 3 3 . . . 1 . . . . . . . . . Melee . | . . . . . . . . . . . . . . . . . . . . . . . . . . Uniques/NPCs Destroyed 2 | . . . . . . . . . . . . . . . . . . . . . . . . . 2 MAIN.C Shell (-1/Command) MAIN.C (-1/Command) Combat | -11 -10 -10 -9 -9 -9 -8 -8 -7 -6 -6 -5 -5 -5 -5 -5 -4 -4 -4 -4 -3 -3 -3 -2 -1 -1 -------- Run | Scr Mat Min Mat Min Exi Min Mat Fac Fac DSF Fac Ext Cet Arc Hub Fac Upp Upp Zhi Pro Res DSF Res Acc Com Damage Taken 15205 | . 77 91 565 74 . 46 387 . . 806 779 552 600 41 132 445 184 1111 . 91 . 130 650 . 8444 Core 1155 | . 10 . 54 7 . 46 61 . . 72 93 . 29 10 19 8 . 84 . . . 2 . . 660 Absorbed by Shields 4404 | . . . 50 9 . . 153 . . 140 206 197 14 43 138 325 154 270 . 94 . 132 476 . 2003 Reduced by Siege Mode 2420 | . . . . . . . . . . . 102 42 68 6 . 40 18 160 . 6 . . 71 . 1907 Redirected to Shielding 344 | . . . . . . . . . . 40 . 45 11 9 . 19 9 85 . 8 . 1 15 . 102 Core Remaining (%) 84 | 100 . 96 . . . 73 88 100 . 91 . . . . 39 . . . . 92 . 90 100 . 58 Volleys Fired 655 | 10 12 6 59 14 . 4 61 . . 23 70 38 19 12 14 28 6 23 . 8 2 . 66 16 164 Largest 4 | 2 2 1 2 2 . 2 3 . . 4 4 4 4 4 4 4 4 4 . 4 1 . 4 4 4 Hottest 233 | 40 100 30 46 46 . 46 104 . . 118 166 122 111 174 176 129 129 184 . 138 90 . 218 148 233 Shots Fired 1796 | 20 15 6 118 25 . 6 156 . . 69 221 117 71 44 41 68 21 86 . 23 2 . 182 20 485 Gun 1381 | 20 6 . 118 22 . 4 145 . . 65 199 105 71 44 37 54 20 83 . 20 . . 153 5 210 Cannon 372 | . . . . . . . . . . . 20 7 . . 4 14 1 3 . 3 2 . 29 15 274 Launcher 33 | . 5 6 . 3 . 2 6 . . 4 2 5 . . . . . . . . . . . . . Special 10 | . 4 . . . . . 5 . . . . . . . . . . . . . . . . . 1 Kinetic 1574 | 20 6 . 118 22 . 4 100 . . 57 192 105 71 43 37 54 20 83 . 20 . . 153 5 464 Thermal 134 | . 4 . . . . . 11 . . . 20 7 . 1 4 14 1 3 . 3 2 . 29 15 20 Explosive 29 | . 1 6 . 3 . 2 6 . . 4 2 5 . . . . . . . . . . . . . Electromagnetic 58 | . 4 . . . . . 39 . . 8 7 . . . . . . . . . . . . . . Robot Hit Streak 68 | 4 6 5 12 5 . 1 16 . . 42 36 16 23 10 5 8 9 50 . 21 . . 30 9 68 Robot Miss Streak 5 | 3 1 2 2 2 . 2 5 . . 2 3 2 1 3 2 3 1 3 . . . . 3 . 3 Penetration Max 2 | . . . . . . . . . . . 1 . 1 1 1 1 . 2 . 1 . . 1 . 1 Secondary Targets 32 | . . . 2 . . . 1 . . 3 4 1 4 . . 1 2 6 . 1 . . 3 . 4 Max Gunslinging Chain 2 | . . . 1 . . . 1 . . 1 1 1 1 . . 1 1 1 . 1 . . 2 . 1 Shots Hit Robots 1250 | 12 4 4 85 14 . 2 95 . . 57 163 73 62 29 16 36 17 68 . 20 . . 106 4 383 Core Hits 636 | 3 6 6 33 12 . 5 58 . . 37 70 39 20 14 16 21 7 31 . 9 . . 57 2 190 Critical Kills 29 | . 1 . . 1 . . . . . . 1 2 1 1 2 1 . 1 . . . . 8 . 10 Critical Parts Destroyed 32 | . . . 1 . . . 1 . . 1 2 1 . 1 1 . . . . . . . 4 . 20 Critical Strikes 88 | . 1 . 1 1 . . 2 . . 1 3 3 1 2 3 1 . 1 . . . . 13 . 55 Burn 1 | . . . . . . . 1 . . . . . . . . . . . . . . . . . . Meltdown 2 | . . . . . . . . . . . . 2 . . . . . . . . . . . . . Destroy 64 | . 1 . 1 1 . . 1 . . 1 2 1 1 2 3 1 . 1 . . . . 13 . 35 Blast 20 | . . . . . . . . . . . . . . . . . . . . . . . . . 20 Smash 1 | . . . . . . . . . . . 1 . . . . . . . . . . . . . . Melee Attacks 57 | . . . . . . . 8 9 13 2 25 . . . . . . . . . . . . . . Impact 57 | . . . . . . . 8 9 13 2 25 . . . . . . . . . . . . . . Slashing . | . . . . . . . . . . . . . . . . . . . . . . . . . . Piercing . | . . . . . . . . . . . . . . . . . . . . . . . . . . Sneak Attacks 4 | . . . . . . . 1 . . . 3 . . . . . . . . . . . . . . Combat Hostiles . | . . . . . . . . . . . . . . . . . . . . . . . . . . Follow-up Attacks . | . . . . . . . . . . . . . . . . . . . . . . . . . . Damage Inflicted 40382 | 151 184 167 1260 518 . 204 2125 . . 1547 4260 2859 1327 741 1398 1173 399 1727 . 561 . 18 3271 116 16376 Guns 22986 | 151 55 . 1260 236 . 31 1510 . . 910 3392 1425 1327 741 368 993 399 1727 . 561 . . 3137 116 4647 Cannons 12327 | . . . . . . . . . . . 66 636 . . . 33 . . . . . . 40 . 11552 Explosions 4097 | . 129 167 . 282 . 173 530 . . 637 294 798 . . 975 112 . . . . . . . . . Melee 511 | . . . . . . . 85 . . . 426 . . . . . . . . . . . . . . Ramming 461 | . . . . . . . . . . . 82 . . . 55 35 . . . . . 18 94 . 177 Kinetic 33454 | 151 55 . 1260 236 . 31 877 . . 762 3255 1425 1327 741 368 993 399 1727 . 561 . . 3137 116 16033 Thermal 1567 | . . . . . . . 57 . . . 66 1205 . . . 33 . . . . . . 40 . 166 Explosive 2553 | . 129 167 . 282 . 173 530 . . 637 294 229 . . . 112 . . . . . . . . . Electromagnetic 1836 | . . . . . . . 576 . . 148 137 . . . 975 . . . . . . . . . . Impact 511 | . . . . . . . 85 . . . 426 . . . . . . . . . . . . . . Slashing . | . . . . . . . . . . . . . . . . . . . . . . . . . . Piercing . | . . . . . . . . . . . . . . . . . . . . . . . . . . Highest Corruption 23 | . 1 1 4 4 4 4 . . . . 11 11 17 17 23 3 3 3 3 3 . . 3 . 17 Average Corruption 7 | . 1 1 4 4 4 4 . . . . 7 9 12 17 17 2 3 3 3 3 . . 2 . 10 Corruption Purged 5 | . . . . . . . . . . . . 5 . . . . . . . . . . . . . Corruption Blocked . | . . . . . . . . . . . . . . . . . . . . . . . . . . Effects 238 | . . 3 1 6 8 1 . . . . 62 35 14 4 18 10 8 7 4 5 . . 15 . 37 Message Errors 55 | . . . . 2 2 1 . . . . 15 7 2 . 3 4 3 2 1 1 . . 5 . 7 Matter Fused 50 | . . 1 . 2 2 . . . . . 13 9 2 . 5 1 3 . 2 1 . . 1 . 8 Heat Flow Errors 23 | . . . . 1 1 . . . . . 6 . 4 . 2 . . . 1 1 . . 2 . 5 Energy Discharges 28 | . . 2 . . . . . . . . 6 4 2 1 4 1 1 3 . . . . 1 . 3 Parts Rejected 5 | . . . . . . . . . . . 1 . . . 1 . . . . . . . . . 3 Data Loss (minor) 27 | . . . 1 1 1 . . . . . 7 6 2 1 . 1 1 1 . 1 . . 2 . 2 Data Loss (major) 19 | . . . . . 1 . . . . . 5 5 . 1 1 2 . 1 . 1 . . 2 . . Misfires 7 | . . . . . . . . . . . 3 1 . . 1 . . . . . . . . . 2 Alerts 5 | . . . . . 1 . . . . . 1 . . 1 . . . . . . . . 2 . . Misdirections 4 | . . . . . . . . . . . 1 2 . . . . . . . . . . . . 1 Weapon Failures 15 | . . . . . . . . . . . 4 1 2 . 1 1 . . . . . . . . 6 Overload Shots . | . . . . . . . . . . . . . . . . . . . . . . . . . . Overflow Damage 692 | . 6 . . 5 . . 45 . . 1 360 44 . . 48 13 . . . . . . 18 . 152 Projectiles 123 | . . . . . . . . . . . 16 4 . . . 13 . . . . . . . . 90 Explosions 100 | . 6 . . 5 . . . . . 1 . 40 . . 48 . . . . . . . . . . Melee 469 | . . . . . . . 45 . . . 344 . . . . . . . . . . . 18 . 62 Knockbacks 52 | . . . . . . . . . . . . . . . . . . . . . . . . . 52 Impact 1 | . . . . . . . . . . . . . . . . . . . . . . . . . 1 Kinetic 50 | . . . . . . . . . . . . . . . . . . . . . . . . . 50 Secondary 1 | . . . . . . . . . . . . . . . . . . . . . . . . . 1 Self-Inflicted Damage 326 | . 12 73 . 19 . . . . . 52 . 93 . . 77 . . . . . . . . . . Shots 8 | . 1 3 . 1 . . . . . 1 . 1 . . 1 . . . . . . . . . . Rammed 19 | . . . . . . . . . . . 5 . . . 4 2 . . . . . 1 2 . 5 Targets Rammed 22 | . . . . . . . . . . . 7 . . . 4 2 . . . . . 1 2 . 6 Kicked . | . . . . . . . . . . . . . . . . . . . . . . . . . . Crushed 3 | . . . . . . . . . . . 2 . . . . . . . . . . . . . 1 Highest Temperature 531 | . 40 . 66 94 210 7 192 . . 26 306 162 531 88 389 332 77 148 143 218 . . 70 . 75 Average Temperature 76 | . 15 . 23 56 110 7 27 . . 12 99 43 175 18 114 100 39 47 82 75 . . 50 . 22 Received Heat Transfer 2022 | . 30 . 307 . . 27 157 . . 185 121 47 126 . 4 55 85 187 . 33 . . 148 . 510 Effects 10 | . . . . . . . . . . . . . 6 . 2 2 . . . . . . . . . Shutdowns 2 | . . . . . . . . . . . . . 2 . . . . . . . . . . . . Energy Bleed 3 | . . . . . . . . . . . . . 2 . 1 . . . . . . . . . . Interference 3 | . . . . . . . . . . . . . 1 . . 2 . . . . . . . . . Matter Decay 1 | . . . . . . . . . . . . . 1 . . . . . . . . . . . . Damage (minor) 1 | . . . . . . . . . . . . . . . 1 . . . . . . . . . . Siege Activations 37 | . . . . . . . . . . . 7 6 2 1 2 2 1 1 . 1 . . 5 . 9 Total Turns 824 | . . . . . . . . . . . 88 66 44 11 4 37 13 47 . 14 . . 103 . 397 Longest Duration 190 | . . . . . . . . . . . 33 30 25 11 2 28 13 47 . 14 . . 41 . 190 Robots Corrupted 1 | . . . . . . . . . . . . . . . 1 . . . . . . . . . . Combat Hostiles . | . . . . . . . . . . . . . . . . . . . . . . . . . . Parts Fried 21 | . . . . . . . 3 . . . 11 . . . 7 . . . . . . . . . . Impact Corruptions 15 | . . . . . . . 1 . . . 10 . . . . . . . . . . . 1 . 3 Robots Melted 2 | . . . . . . . . . . . . 2 . . . . . . . . . . . . . Combat Hostiles 2 | . . . . . . . . . . . . 2 . . . . . . . . . . . . . Parts Melted 6 | . . . . . . . 2 . . . . 4 . . . . . . . . . . . . . Heat Transferred 1504 | . . . . . . . 222 . . . 100 960 . . . 37 . . . . . . 37 . 148 Parts Sabotaged . | . . . . . . . . . . . . . . . . . . . . . . . . . . Parts Stolen . | . . . . . . . . . . . . . . . . . . . . . . . . . . Parts Stripped . | . . . . . . . . . . . . . . . . . . . . . . . . . . Power Chain Reactions . | . . . . . . . . . . . . . . . . . . . . . . . . . . Missiles Intercepted . | . . . . . . . . . . . . . . . . . . . . . . . . . . Alert | -11 -10 -10 -9 -9 -9 -8 -8 -7 -6 -6 -5 -5 -5 -5 -5 -4 -4 -4 -4 -3 -3 -3 -2 -1 -1 ------- Run | Scr Mat Min Mat Min Exi Min Mat Fac Fac DSF Fac Ext Cet Arc Hub Fac Upp Upp Zhi Pro Res DSF Res Acc Com Peak Influence 1020 | 10 222 133 332 380 . 75 549 278 228 408 326 325 262 362 1020 878 . . . . 51 53 372 252 807 Initial 499 | . 6 28 51 125 . . 29 249 135 159 214 108 63 104 126 499 . . . . 47 38 29 168 67 Average 242 | 3 79 109 203 223 . 66 270 261 175 320 157 181 208 293 303 564 . . . . 48 39 163 170 406 Maximum Alert Level 3 | . 1 . 1 1 . . 2 1 1 2 1 1 1 1 3 3 . . . . . . 1 1 3 Low Security (%) 46 | 100 82 100 42 53 . 100 44 . 93 28 52 56 30 17 42 . . . . . 100 100 56 57 27 Level 1 34 | . 17 . 57 46 . . 18 100 6 23 47 43 69 82 30 11 . . . . . . 43 42 13 Level 2 14 | . . . . . . . 36 . . 48 . . . . 24 66 . . . . . . . . 38 Level 3 4 | . . . . . . . . . . . . . . . 1 21 . . . . . . . . 20 Level 4 . | . . . . . . . . . . . . . . . . . . . . . . . . . . Level 5 . | . . . . . . . . . . . . . . . . . . . . . . . . . . High Security . | . . . . . . . . . . . . . . . . . . . . . . . . . . Max Security . | . . . . . . . . . . . . . . . . . . . . . . . . . . Sterilizations 1 | . . . . . . . . . . 1 . . . . . . . . . . . . . . . Squads Dispatched 44 | . 5 . 2 . . . 3 1 1 2 6 . . . 6 2 . 1 . . . 1 5 2 7 Investigation 11 | . 5 . 2 . . . 1 . . . 2 . . . . . . . . . . . . 1 . Extermination 12 | . . . . . . . . 1 . . 3 . . . . 1 . . . . . . 3 . 4 Reinforcement 16 | . . . . . . . 1 . 1 2 1 . . . 6 . . . . . . 1 2 1 1 Assault 4 | . . . . . . . . . . . . . . . . 1 . 1 . . . . . . 2 Garrison 1 | . . . . . . . 1 . . . . . . . . . . . . . . . . . . Intercept . | . . . . . . . . . . . . . . . . . . . . . . . . . . Searches Triggered . | . . . . . . . . . . . . . . . . . . . . . . . . . . Construction Impeded 1 | . . . . . . . . . . . . . . . 1 . . . . . . . . . . Haulers Reinforced 1 | . . . . . . . . . . . . . . . 1 . . . . . . . . . . Active Scanning Responses . | . . . . . . . . . . . . . . . . . . . . . . . . . . Cargo Convoy Interrupts . | . . . . . . . . . . . . . . . . . . . . . . . . . . Stealth | -11 -10 -10 -9 -9 -9 -8 -8 -7 -6 -6 -5 -5 -5 -5 -5 -4 -4 -4 -4 -3 -3 -3 -2 -1 -1 --------- Run | Scr Mat Min Mat Min Exi Min Mat Fac Fac DSF Fac Ext Cet Arc Hub Fac Upp Upp Zhi Pro Res DSF Res Acc Com Distress Signals 21 | . 1 . . . . . 1 . . . 3 1 1 . 2 1 . . . . . . 1 . 10 Communications Jammed 141 | . . . . . . . . . . . 25 32 . . . . . . . . . . 76 4 4 Distress Signals 141 | . . . . . . . . . . . 25 32 . . . . . . . . . . 76 4 4 Times Spotted 309 | . 8 3 19 7 . 3 33 1 3 10 31 21 13 9 13 9 4 17 . 3 . 4 37 4 57 Peak Tracking Total 8 | . 4 2 4 4 . 3 5 1 2 4 4 4 7 1 2 5 3 8 . 3 . 2 7 1 8 Tactical Retreats 16 | . . . . . . . 2 . . . 4 . . . . 3 1 . . . . 1 2 . 3 Traps | -11 -10 -10 -9 -9 -9 -8 -8 -7 -6 -6 -5 -5 -5 -5 -5 -4 -4 -4 -4 -3 -3 -3 -2 -1 -1 ------- Run | Scr Mat Min Mat Min Exi Min Mat Fac Fac DSF Fac Ext Cet Arc Hub Fac Upp Upp Zhi Pro Res DSF Res Acc Com Traps Triggered 6 | . 3 . 1 . . . . 1 . . 1 . . . . . . . . . . . . . . Indirectly 2 | . 2 . . . . . . . . . . . . . . . . . . . . . . . . Trap Hack Attempts . | . . . . . . . . . . . . . . . . . . . . . . . . . . Triggered . | . . . . . . . . . . . . . . . . . . . . . . . . . . Disarmed . | . . . . . . . . . . . . . . . . . . . . . . . . . . Reprogrammed . | . . . . . . . . . . . . . . . . . . . . . . . . . . Reused . | . . . . . . . . . . . . . . . . . . . . . . . . . . Traps Extracted . | . . . . . . . . . . . . . . . . . . . . . . . . . . Installed . | . . . . . . . . . . . . . . . . . . . . . . . . . . Triggered 3 | . . . . . . . . . . . . . . . . . . 3 . . . . . . . Exploded 2 | . . . . . 2 . . . . . . . . . . . . . . . . . . . . Machines | -11 -10 -10 -9 -9 -9 -8 -8 -7 -6 -6 -5 -5 -5 -5 -5 -4 -4 -4 -4 -3 -3 -3 -2 -1 -1 ---------- Run | Scr Mat Min Mat Min Exi Min Mat Fac Fac DSF Fac Ext Cet Arc Hub Fac Upp Upp Zhi Pro Res DSF Res Acc Com Machines Disabled 31 | . 1 . . 1 . . . . . . 2 3 . 3 8 7 . . . . . . 2 . 4 Max in Single Turn 5 | . 1 . . 1 . . . . . . 1 1 . 1 5 3 . . . . . . 1 . 2 Garrison Access 5 | . . . . . . . . . . . 1 . . . 1 1 . . . . . . 1 1 . Phase Generator 1 | . . . . . . . . . . . . . . . . . . . . . . . . . 1 Network Hub 1 | . . . . . . . . . . . . . . . 1 . . . . . . . . . . Machines Sabotaged . | . . . . . . . . . . . . . . . . . . . . . . . . . . Garrisons Compromised . | . . . . . . . . . . . . . . . . . . . . . . . . . . Overloaded Fab Kills . | . . . . . . . . . . . . . . . . . . . . . . . . . . Hacking | -11 -10 -10 -9 -9 -9 -8 -8 -7 -6 -6 -5 -5 -5 -5 -5 -4 -4 -4 -4 -3 -3 -3 -2 -1 -1 --------- Run | Scr Mat Min Mat Min Exi Min Mat Fac Fac DSF Fac Ext Cet Arc Hub Fac Upp Upp Zhi Pro Res DSF Res Acc Com Machines Accessed 91 | . 7 . 5 . 1 . 11 3 5 . 10 9 1 . 7 5 1 . 4 . 1 . 9 6 6 Terminals 68 | . 6 . 4 . . . 10 1 4 . 5 9 1 . 6 3 . . . . 1 . 8 5 5 Fabricators 3 | . . . . . . . . 2 . . 1 . . . . . . . . . . . . . . Repair Stations 1 | . . . . . . . . . . . 1 . . . . . . . . . . . . . . Recycling Units 5 | . 1 . 1 . . . . . . . 1 . . . . 1 . . . . . . . . 1 Scanalyzers 1 | . . . . . . . 1 . . . . . . . . . . . . . . . . . . Garrison Access 7 | . . . . . . . . . 1 . 2 . . . 1 1 . . . . . . 1 1 . Total Hacks 276 | . 23 . 14 . 1 . 41 4 12 . 22 17 7 . 16 12 1 . 17 . 1 . 52 19 17 Successful 131 | . 9 . 8 . 1 . 17 2 7 . 10 10 1 . 6 6 1 . 17 . 1 . 20 6 9 Failed 143 | . 14 . 5 . . . 23 2 5 . 12 7 6 . 10 6 . . . . . . 32 13 8 Catastrophic 20 | . . . . . . . 2 . 2 . 4 . . . 2 2 . . . . . . 6 1 1 Database Lockouts 2 | . . . 1 . . . 1 . . . . . . . . . . . . . . . . . . Manual 164 | . 19 . 10 . 1 . 29 2 2 . 18 6 1 . 11 8 . . . . . . 38 7 12 Terminals 230 | . 22 . 13 . . . 39 1 11 . 16 17 7 . 14 10 . . . . 1 . 47 16 16 Fabricators 4 | . . . . . . . . 3 . . 1 . . . . . . . . . . . . . . Repair Stations 1 | . . . . . . . . . . . 1 . . . . . . . . . . . . . . Recycling Units 5 | . 1 . 1 . . . . . . . 1 . . . . 1 . . . . . . . . 1 Scanalyzers 2 | . . . . . . . 2 . . . . . . . . . . . . . . . . . . Garrison Access 15 | . . . . . . . . . 1 . 3 . . . 2 1 . . . . . . 5 3 . Terminal Hacks 82 | . 4 . 3 . 1 . 11 1 6 . 4 8 1 . 3 2 1 . 17 . 1 . 11 4 4 Record 5 | . . . . . . . . . . . . . . . . . . . 5 . . . . . . Part Schematic 5 | . . . . . . . . . 1 . . . . . . . . . 4 . . . . . . Robot Analysis 15 | . 3 . 3 . . . 4 . . . . . . . . . . . 4 . . . 1 . . Prototype ID Bank 6 | . . . . . . . 1 . . . . . . . . . . . 4 . . . 1 . . Open Door 12 | . . . . . . . . . . . . 6 1 . . . 1 . . . . . . 3 1 Open DSF 3 | . . . . . . . . 1 1 . . . . . . . . . . . 1 . . . . Level Access Points 1 | . . . . . . . . . . . . . . . . . . . . . . . 1 . . Branch Access Points 4 | . . . . . . . . . . . 1 . . . . 1 . . . . . . 1 1 . Machine Index 1 | . . . . . . . . . . . . . . . . . . . . . . . 1 . . Terminal Index 5 | . . . . . . . 1 . 1 . . 1 . . 1 . . . . . . . . . 1 Alert Level 1 | . . . . . . . . . . . . . . . . . . . . . . . 1 . . Unreport Threat 9 | . 1 . . . . . 1 . . . 2 1 . . 1 1 . . . . . . 2 . . Locate Traps 6 | . . . . . . . 1 . 1 . 1 . . . 1 . . . . . . . . . 2 Hauler Manifests 1 | . . . . . . . 1 . . . . . . . . . . . . . . . . . . Registered Components 1 | . . . . . . . . . . . . . . . . . . . . . . . 1 . . Registered Prototypes 1 | . . . . . . . . . . . . . . . . . . . . . . . 1 . . Zone Layout 5 | . . . . . . . 2 . 2 . . . . . . . . . . . . . 1 . . EX-Prototype ID Bank 1 | . . . . . 1 . . . . . . . . . . . . . . . . . . . . Fabricator Hacks 1 | . . . . . . . . 1 . . . . . . . . . . . . . . . . . Build 1 | . . . . . . . . 1 . . . . . . . . . . . . . . . . . Repair Station Hacks . | . . . . . . . . . . . . . . . . . . . . . . . . . . Recycling Unit Hacks . | . . . . . . . . . . . . . . . . . . . . . . . . . . Scanalyzer 2 | . . . . . . . 2 . . . . . . . . . . . . . . . . . . Insert Component 1 | . . . . . . . 1 . . . . . . . . . . . . . . . . . . Analyze 1 | . . . . . . . 1 . . . . . . . . . . . . . . . . . . Garrison Access Hacks 5 | . . . . . . . . . . . 1 . . . 1 1 . . . . . . 1 1 . Seal Access 5 | . . . . . . . . . . . 1 . . . 1 1 . . . . . . 1 1 . Unauthorized Hacks 41 | . 5 . 5 . . . 4 . 1 . 5 2 . . 2 3 . . . . . . 8 1 5 Terminals 35 | . 4 . 4 . . . 4 . 1 . 3 2 . . 2 2 . . . . . . 8 1 4 Track 6 | . 1 . 2 . . . 1 . . . . . . . . . . . . . . . 1 . 1 Assimilate 1 | . . . . . . . . . . . . . . . . . . . . . . . 1 . . Botnet 22 | . 2 . 2 . . . 2 . 1 . 2 2 . . 2 2 . . . . . . 4 1 2 Disrupt 2 | . . . . . . . . . . . . . . . . . . . . . . . 1 . 1 Operators 4 | . 1 . . . . . 1 . . . 1 . . . . . . . . . . . 1 . . Fabricators . | . . . . . . . . . . . . . . . . . . . . . . . . . . Repair Stations 1 | . . . . . . . . . . . 1 . . . . . . . . . . . . . . Mechanics 1 | . . . . . . . . . . . 1 . . . . . . . . . . . . . . Recycling Units 5 | . 1 . 1 . . . . . . . 1 . . . . 1 . . . . . . . . 1 Recyclers 3 | . . . . . . . . . . . 1 . . . . 1 . . . . . . . . 1 Tunnel 2 | . 1 . 1 . . . . . . . . . . . . . . . . . . . . . . Scanalyzers . | . . . . . . . . . . . . . . . . . . . . . . . . . . Garrison Access . | . . . . . . . . . . . . . . . . . . . . . . . . . . Data Cores Recovered 1 | . . . . . . . . . . . . 1 . . . . . . . . . . . . . Used 1 | . . . . . . . . . . . . 1 . . . . . . . . . . . . . Hacking Detections 64 | . 6 . 4 . . . 11 2 4 . 8 3 1 . 6 3 . . . . . . 9 3 4 Full Trace Events 10 | . 6 . . . . . 1 . . . 2 . . . . . . . . . . . . 1 . Feedback Events 1 | . 1 . . . . . . . . . . . . . . . . . . . . . . . . Corruption 1 | . 1 . . . . . . . . . . . . . . . . . . . . . . . . Feedback Blocked . | . . . . . . . . . . . . . . . . . . . . . . . . . . Robot Schematics Acquired . | . . . . . . . . . . . . . . . . . . . . . . . . . . Robots Built . | . . . . . . . . . . . . . . . . . . . . . . . . . . Authchips . | . . . . . . . . . . . . . . . . . . . . . . . . . . Time . | . . . . . . . . . . . . . . . . . . . . . . . . . . Total Robot Build Rating . | . . . . . . . . . . . . . . . . . . . . . . . . . . Part Schematics Acquired 6 | . . . . . . . 1 . 1 . . . . . . . . . 4 . . . . . . Parts Built 1 | . . . . . . . . 1 . . . . . . . . . . . . . . . . . Authchips . | . . . . . . . . . . . . . . . . . . . . . . . . . . Time 106 | . . . . . . . . 106 . . . . . . . . . . . . . . . . . Total Part Build Rating 6 | . . . . . . . . 6 . . . . . . . . . . . . . . . . . Parts Repaired . | . . . . . . . . . . . . . . . . . . . . . . . . . . Time . | . . . . . . . . . . . . . . . . . . . . . . . . . . Parts Recycled . | . . . . . . . . . . . . . . . . . . . . . . . . . . Recycled Matter . | . . . . . . . . . . . . . . . . . . . . . . . . . . Retrieved Matter . | . . . . . . . . . . . . . . . . . . . . . . . . . . Retrieved Components . | . . . . . . . . . . . . . . . . . . . . . . . . . . Parts Scanalyzed 1 | . . . . . . . 1 . . . . . . . . . . . . . . . . . . Part Schematics Acquired 1 | . . . . . . . 1 . . . . . . . . . . . . . . . . . . Parts Damaged . | . . . . . . . . . . . . . . . . . . . . . . . . . . Bothacking | -11 -10 -10 -9 -9 -9 -8 -8 -7 -6 -6 -5 -5 -5 -5 -5 -4 -4 -4 -4 -3 -3 -3 -2 -1 -1 ------------ Run | Scr Mat Min Mat Min Exi Min Mat Fac Fac DSF Fac Ext Cet Arc Hub Fac Upp Upp Zhi Pro Res DSF Res Acc Com Used RIF Installer . | . . . . . . . . . . . . . . . . . . . . . . . . . . Robots Hacked 1 | . . . . . . . . . . . . . . . . . . . . . . . . . 1 Non-combat . | . . . . . . . . . . . . . . . . . . . . . . . . . . Combat . | . . . . . . . . . . . . . . . . . . . . . . . . . . Robot Hacks Applied . | . . . . . . . . . . . . . . . . . . . . . . . . . . Manual 1 | . . . . . . . . . . . . . . . . . . . . . . . . . 1 Relay Couplers Released . | . . . . . . . . . . . . . . . . . . . . . . . . . . Fabnet Peak Effective % . | . . . . . . . . . . . . . . . . . . . . . . . . . . Robots Rewired 6 | . . . . . . . . . . . . 4 . . . . . 2 . . . . . . . Allies Hacked . | . . . . . . . . . . . . . . . . . . . . . . . . . . Hacks Repelled . | . . . . . . . . . . . . . . . . . . . . . . . . . . Allies | -11 -10 -10 -9 -9 -9 -8 -8 -7 -6 -6 -5 -5 -5 -5 -5 -4 -4 -4 -4 -3 -3 -3 -2 -1 -1 -------- Run | Scr Mat Min Mat Min Exi Min Mat Fac Fac DSF Fac Ext Cet Arc Hub Fac Upp Upp Zhi Pro Res DSF Res Acc Com Total Allies 20 | . . . . 3 . . . . . . . 9 5 . . . . 2 . . . . 1 . . Largest Group 6 | . . . . 3 3 3 2 . . . . 6 6 6 5 2 . 2 1 1 . . 1 . . Highest-Rated Group 610 | . . . . 40 40 40 24 . . . . 249 610 610 480 187 . 96 47 47 . . 45 . . Highest-Rated Ally 159 | . . . . 16 16 16 16 . . . . 159 159 130 96 96 . 49 47 47 . . 45 . . Total Orders 4 | . . . . . . . . . . . . . . . 1 . . . 2 . . . 1 . . STAY 3 | . . . . . . . . . . . . . . . 1 . . . 1 . . . 1 . . FOLLOW 1 | . . . . . . . . . . . . . . . . . . . 1 . . . . . . Ally Attacks 201 | . . . . . . 14 21 . . . . 37 27 16 65 5 . 15 . 1 . . . . . Total Damage 5309 | . . . . . . 144 230 . . . . 396 694 598 2616 180 . 451 . . . . . . . Kills 33 | . . . . . . 3 2 . . . . 3 4 3 15 1 . 2 . . . . . . . Allies Corrupted 2 | . . . . . . . . . . . . . . . 1 1 . . . . . . . . . Allies Melted . | . . . . . . . . . . . . . . . . . . . . . . . . . . Intel | -11 -10 -10 -9 -9 -9 -8 -8 -7 -6 -6 -5 -5 -5 -5 -5 -4 -4 -4 -4 -3 -3 -3 -2 -1 -1 ------- Run | Scr Mat Min Mat Min Exi Min Mat Fac Fac DSF Fac Ext Cet Arc Hub Fac Upp Upp Zhi Pro Res DSF Res Acc Com Robot Analysis Total 15 | . 3 . 3 . . . 4 . . . . . . . . . . . 4 . . . 1 . . Derelict Logs Recovered 3 | . . . . 2 . . . . . . . . . . . . . 1 . . . . . . . Drone Launches . | . . . . . . . . . . . . . . . . . . . . . . . . . . Drone Recoveries . | . . . . . . . . . . . . . . . . . . . . . . . . . . Exploration | -11 -10 -10 -9 -9 -9 -8 -8 -7 -6 -6 -5 -5 -5 -5 -5 -4 -4 -4 -4 -3 -3 -3 -2 -1 -1 ------------- Run | Scr Mat Min Mat Min Exi Min Mat Fac Fac DSF Fac Ext Cet Arc Hub Fac Upp Upp Zhi Pro Res DSF Res Acc Com Turns Passed 14970 | 94 233 220 706 460 286 74 1026 298 383 304 2300 1052 331 164 459 906 384 441 226 354 139 71 1677 617 1765 Spaces Moved 8340 | 67 219 136 451 373 251 55 656 239 294 130 1196 497 137 67 238 478 228 223 135 198 74 40 863 345 750 Core 85 | 17 . . . . . . . . . . . . . . . . . . . . . . . . 68 Treads 5599 | . . 106 4 . . . . . . 88 1196 497 137 67 238 478 228 223 135 198 74 40 863 345 682 Legs . | . . . . . . . . . . . . . . . . . . . . . . . . . . Wheels 2656 | 50 219 30 447 373 251 55 656 239 294 42 . . . . . . . . . . . . . . . Hover . | . . . . . . . . . . . . . . . . . . . . . . . . . . Flight . | . . . . . . . . . . . . . . . . . . . . . . . . . . Fastest Speed 50 | 50 80 80 86 110 110 110 110 110 110 125 160 160 160 160 160 155 155 155 155 155 155 150 155 155 50 Average Speed 140 | 73 81 142 101 110 110 110 110 110 111 150 160 160 160 160 160 160 155 155 155 155 155 151 156 155 146 Slowest Speed 166 | 90 95 160 160 110 110 110 110 155 125 166 160 160 160 160 160 163 155 155 155 158 155 155 158 155 160 Overloaded Moves . | . . . . . . . . . . . . . . . . . . . . . . . . . . Propulsion Burnouts . | . . . . . . . . . . . . . . . . . . . . . . . . . . Robots Hopped . | . . . . . . . . . . . . . . . . . . . . . . . . . . Cave-ins Triggered . | . . . . . . . . . . . . . . . . . . . . . . . . . . Teleports 1 | . . . . . . . . . . . . . . . . . . . . . . 1 . . . Exploration Rate (%) 46 | 3 58 55 44 88 68 13 75 9 18 85 38 79 72 85 35 16 55 47 61 52 3 73 26 12 28 Regions Visited 25 Branch Regions 13 Pre-discovered Areas 6 | . 1 1 1 . . . . . . . . . . . . . . . 3 . . . . . . Known Exits Taken 7 | . . . . . . . 1 . 1 . 1 . . . . 1 . . . . 1 . 1 1 . Unknown Exits Taken 16 | 1 1 1 1 1 1 1 . 1 . . . 1 1 1 1 . 1 1 1 1 . . . . . Scrap Searched 10 | . . 1 . 2 . . . . . . . . . . . . 2 1 . 4 . . . . . Spaces Dug 160 | . 4 . . . . . 10 9 11 2 37 . . . 3 13 1 2 . 3 2 . 31 16 16 Terrain Destroyed 831 | . 11 57 . 26 . 23 68 9 11 20 52 77 . 2 182 110 1 11 . 8 2 . 40 16 105 Melee 48 | . . . . . . . 6 9 11 2 20 . . . . . . . . . . . . . . Projectile 174 | . 4 . . . . . 4 . . . 21 3 . 2 12 16 1 11 . 8 2 . 36 16 38 AOE 605 | . 7 57 . 26 . 23 58 . . 18 11 74 . . 170 94 . . . . . . . . 67 Terrain Rammed . | . . . . . . . . . . . . . . . . . . . . . . . . . . Walls Destroyed . | . . . . . . . . . . . . . . . . . . . . . . . . . . Machines Disabled . | . . . . . . . . . . . . . . . . . . . . . . . . . . Actions | -11 -10 -10 -9 -9 -9 -8 -8 -7 -6 -6 -5 -5 -5 -5 -5 -4 -4 -4 -4 -3 -3 -3 -2 -1 -1 --------- Run | Scr Mat Min Mat Min Exi Min Mat Fac Fac DSF Fac Ext Cet Arc Hub Fac Upp Upp Zhi Pro Res DSF Res Acc Com Total 10257 | 90 246 151 585 401 262 64 830 257 328 198 1390 670 218 98 285 565 247 274 153 232 98 51 1085 410 1069 Wait 309 | . . . 4 . 5 2 30 . . 6 10 31 33 4 16 23 2 6 . 2 . 4 80 19 32 Move 8316 | 66 218 135 450 372 250 54 655 238 293 129 1196 496 136 66 237 477 227 222 134 197 73 40 862 344 749 Hop . | . . . . . . . . . . . . . . . . . . . . . . . . . . Pick Up 142 | 6 4 1 14 2 2 1 16 2 6 6 13 13 1 4 1 5 2 1 2 4 8 2 8 3 15 Fast Attach 83 | 6 . . 7 . . . 3 3 2 4 4 2 6 2 2 3 . 1 6 4 1 1 10 10 6 Attach 82 | 1 . . 4 . 2 . 6 3 4 1 2 9 3 . . 6 1 2 2 4 5 . 7 3 17 Detach 47 | . . . 4 2 . . 3 1 2 1 . 2 3 . . 3 1 . 4 1 2 1 6 4 7 Swap 330 | 1 10 9 25 6 1 2 28 . 2 15 50 31 10 6 10 12 7 10 . 5 2 1 26 2 59 Drop 171 | . 2 . 18 5 2 1 20 1 6 11 14 12 7 4 1 6 1 . 5 7 5 2 18 9 14 Fire 655 | 10 12 6 59 14 . 4 61 . . 23 70 38 19 12 14 28 6 23 . 8 2 . 66 16 164 Melee 57 | . . . . . . . 8 9 13 2 25 . . . . . . . . . . . . . . Ram . | . . . . . . . . . . . . . . . . . . . . . . . . . . Kick . | . . . . . . . . . . . . . . . . . . . . . . . . . . Crush 20 | . . . . . . . . . . . 6 . . . 4 2 . . . . . . 2 . 6 Escape Stasis . | . . . . . . . . . . . . . . . . . . . . . . . . . . Rewire 45 | . . . . . . . . . . . . 36 . . . . . 9 . . . . . . . Trap . | . . . . . . . . . . . . . . . . . . . . . . . . . . Miscellaneous . | . . . . . . . . . . . . . . . . . . . . . . . . . . Route ------- -11/Scrapyard -10/Materials (discovered 4 exits: *Mat x2 / [*Min x2]) -10/Mines -9/Materials (discovered 2 exits: *Mat / [*Min]) -9/Mines (discovered 3 exits: *Mat x2 / *Exi) -9/Exiles (discovered 2 exits: [*Min x2]) -8/Mines -8/Materials (discovered 3 exits: *Fac x3) -7/Factory -6/Factory (discovered 2 exits: [Low] / DSF) -6/DSF -5/Factory (discovered 6 exits: *Fac x2 / Upp x2 / *Ext x2) -5/Extension (discovered 3 exits: *Fac x2 / *Cet) -5/Cetus -5/Archives (discovered 3 exits: *Fac / *Hub x2) -5/Hub_04(d) -4/Factory (discovered 2 exits: *Upp x2) -4/Upper Caves -4/Upper Caves -4/Zhirov -3/Proximity Caves -3/Research -3/DSF -2/Research (discovered 5 exits: *Acc x3 / Qua x2) -1/Access -1/Command (discovered 2 exits: [*Sur x2]) 0b11 Command History --------- Turn | Location | Event 17 | -11/Scrapyard | Discovered new exit (range 15) 95 | -11/Scrapyard | Entered Materials 201 | -10/Materials | Discovered new exit (range 3) 210 | -10/Materials | Discovered new exit (range 14) 305 | -10/Materials | Discovered new exit (range 10) 316 | -10/Materials | Build established: Mutant 318 | -10/Materials | Discovered new exit (range 13) 328 | -10/Materials | Entered Mines 329 | -10/Mines | Learned location of Storage (-8) 341 | -10/Mines | Assembled infested the area 531 | -10/Mines | Discovered new exit (range 8) 548 | -10/Mines | Entered Materials 548 | -9/Materials | Evolved 2 slots: Propulsion x1, Utility x1 977 | -9/Materials | Discovered new exit (range 9) 1000 | -9/Materials | Central database locked down 1012 | -9/Materials | Build established: Scavenger-Mutant 1215 | -9/Materials | Discovered new exit (range 16) 1254 | -9/Materials | Entered Mines 1350 | -9/Mines | Learned Materials garrison access intel 1413 | -9/Mines | Discovered new exit (range 12) 1551 | -9/Mines | Received a Rocket Launcher from a helpful Derelict 1632 | -9/Mines | Assisted by bots powering up and referring to "LRC-V3" 1670 | -9/Mines | Discovered new exit (range 6) 1684 | -9/Mines | Learned location of 1 exit from Materials 1708 | -9/Mines | Deemed a non-threat by the Exiles lab entrance 1708 | -9/Mines | Discovered new exit (range 5) 1714 | -9/Mines | Entered Exiles 1714 | -9/Exiles | Accompanied by 3 allies 1729 | -9/Exiles | Discovered new exit (range 15) 1742 | -9/Exiles | Met 8R-AWN 1760 | -9/Exiles | Met EX-HEX 1816 | -9/Exiles | Met EX-DEC 1835 | -9/Exiles | Met EX-BIN 1851 | -9/Exiles | Aligned with FarCom system 1852 | -9/Exiles | Given EX-Vault access code 1877 | -9/Exiles | Opened EX-Vault 1889 | -9/Exiles | Found YOLO Cannon 1913 | -9/Exiles | Warned to stay clear of 0b10 Research branches 1925 | -9/Exiles | Exiles lab attacked by MAIN.C 1984 | -9/Exiles | Discovered new exit (range 12) 2000 | -9/Exiles | Left Exiles lab with YOLO Cannon 2000 | -9/Exiles | Entered Mines 2000 | -8/Mines | Accompanied by 3 allies 2044 | -8/Mines | Discovered new exit (range 12) 2074 | -8/Mines | Entered Materials 2074 | -8/Materials | Accompanied by 2 allies 2074 | -8/Materials | Evolved 2 slots: Utility x1, Weapon x1 2075 | -8/Materials | Identified exit to Factory 2076 | -8/Materials | Loaded intel: 1 garrison access location 2297 | -8/Materials | Discovered exit to Factory (range 16) 2338 | -8/Materials | Central database locked down 2604 | -8/Materials | Garrison activated, responded to threat 2797 | -8/Materials | Build established: Skirmisher 2898 | -8/Materials | Discovered exit to Factory (range 20) 3100 | -8/Materials | Entered Factory 3100 | -7/Factory | Evolved 2 slots: Utility x2 3269 | -7/Factory | Identified exit to DSF 3300 | -7/Factory | Fabricated Imp. Transmission Jammer (x1) 3384 | -7/Factory | Discovered new exit (range 6) 3394 | -7/Factory | Build established: Assassin 3398 | -7/Factory | Entered another Factory area 3398 | -6/Factory | Evolved 2 slots: Propulsion x1, Weapon x1 3632 | -6/Factory | Discovered new exit (range 11) 3728 | -6/Factory | Found Prototype Processor 3728 | -6/Factory | Identified Exp. Targeting Computer 3781 | -6/Factory | Identified exit to DSF 3781 | -6/Factory | Entered DSF 3809 | -6/DSF | Discovered new exit (range 19) 3826 | -6/DSF | Additional patrols routed to DSF 3986 | -6/DSF | Sterilization system engaged 4006 | -6/DSF | Ambient heat levels rising (+10) 4021 | -6/DSF | Ambient heat levels rising (+10) 4036 | -6/DSF | Ambient heat levels rising (+10) 4051 | -6/DSF | Ambient heat levels rising (+10) 4066 | -6/DSF | Ambient heat levels rising (+10) 4081 | -6/DSF | Ambient heat levels rising (+10) 4085 | -6/DSF | Entered Factory 4085 | -5/Factory | Evolved 2 slots: Power x1, Utility x1 4881 | -5/Factory | Discovered new exit (range 17) 5235 | -5/Factory | System corruption reached 10% 5273 | -5/Factory | Destroyed 7 combat bots 5452 | -5/Factory | Discovered new exit (range 11) 5570 | -5/Factory | Discovered new exit (range 10) 5853 | -5/Factory | Identified exit to Upper Caves 5853 | -5/Factory | Identified exit to Extension 6235 | -5/Factory | Build established: Skirmisher 6385 | -5/Factory | Entered Extension 6737 | -5/Extension | Rescued a captive Derelict 6908 | -5/Extension | Spotted B-75 Beast 6924 | -5/Extension | Destroyed B-75 Beast 6936 | -5/Extension | Spotted B-75 Beast 6956 | -5/Extension | Destroyed B-75 Beast 6970 | -5/Extension | Core integrity fell below 50% 7000 | -5/Extension | Lost 5 parts (1n3u1w) 7003 | -5/Extension | Discovered new exit (range 15) 7210 | -5/Extension | Rescued a captive Derelict 7243 | -5/Extension | Rescued a captive Derelict 7319 | -5/Extension | Rescued a captive Derelict 7330 | -5/Extension | Build established: Scavenger-Skirmisher 7338 | -5/Extension | Rescued a captive Derelict 7358 | -5/Extension | Rescued A7 7397 | -5/Extension | Discovered new exit (range 10) 7398 | -5/Extension | Discovered new exit (range 6) 7437 | -5/Extension | Entered Cetus 7437 | -5/Cetus | Accompanied by 4 allies (A7) 7442 | -5/Cetus | Acquired a Cetus Manufacturing Module code from A7 7457 | -5/Cetus | Spotted Cetus Guard 7457 | -5/Cetus | Spotted Cetus Guard 7457 | -5/Cetus | Spotted Cetus Guard 7464 | -5/Cetus | Destroyed Cetus Guard 7464 | -5/Cetus | Spotted Cetus Guard 7473 | -5/Cetus | Allies destroyed Cetus Guard 7481 | -5/Cetus | Destroyed Cetus Guard 7485 | -5/Cetus | Allies destroyed Cetus Guard 7606 | -5/Cetus | Started Cetus Manufacturing Module 7620 | -5/Cetus | Escorted A7 to Cetus Mainframe 7631 | -5/Cetus | Manufactured an Enhanced Grunt 7656 | -5/Cetus | Manufactured an Enhanced Grunt 7681 | -5/Cetus | Manufactured an Enhanced Grunt 7696 | -5/Cetus | Discovered new exit (range 22) 7706 | -5/Cetus | Manufactured an Enhanced Grunt 7731 | -5/Cetus | Manufactured an Enhanced Grunt 7768 | -5/Cetus | Entered Archives 7768 | -5/Archives | Accompanied by 6 allies (A7) 7773 | -5/Archives | Received a hacking code to weaken MAIN.C 7838 | -5/Archives | Discovered new exit (range 15) 7863 | -5/Archives | Discovered new exit (range 16) 7890 | -5/Archives | Discovered new exit (range 15) 7932 | -5/Archives | Entered Hub_04(d) 7932 | -5/Hub_04(d) | Accompanied by 5 allies 8229 | -5/Hub_04(d) | Spotted B-75 Beast 8320 | -5/Hub_04(d) | Discovered new exit (range 10) 8388 | -5/Hub_04(d) | Network Hub disabled 8391 | -5/Hub_04(d) | Entered Factory 8391 | -4/Factory | Accompanied by 2 allies 8391 | -4/Factory | Evolved 2 slots: Propulsion x1, Utility x1 8641 | -4/Factory | First assault squad dispatched 8680 | -4/Factory | Build established: Scavenger-Mutant 9153 | -4/Factory | Identified exit to Upper Caves 9297 | -4/Factory | Entered Upper Caves 9633 | -4/Upper Caves | Discovered new exit (range 7) 9681 | -4/Upper Caves | Entered another Upper Caves area 9683 | -4/Upper Caves | Learned Research terminal intel 9702 | -4/Upper Caves | Spotted B-86 Titan 9736 | -4/Upper Caves | Attracted the attention of an 0b10 outpost 9819 | -4/Upper Caves | Destroyed 11 combat bots 10077 | -4/Upper Caves | Build established: Scavenger-Skirmisher 10098 | -4/Upper Caves | Discovered new exit (range 20) 10122 | -4/Upper Caves | Entered Zhirov 10122 | -4/Zhirov | Accompanied by 1 ally 10125 | -4/Zhirov | Discovered new exit (range 4) 10153 | -4/Zhirov | Met Zhirov 10188 | -4/Zhirov | Found Alien Artifact 10188 | -4/Zhirov | Identified Integrated Dissipator 10188 | -4/Zhirov | Installed Integrated Dissipator, increased core heat dissipation (+20) 10237 | -4/Zhirov | Found Alien Artifact 10278 | -4/Zhirov | Learned location of Quarantine (-2) 10278 | -4/Zhirov | Learned location of Testing (-3) 10278 | -4/Zhirov | Learned location of Command (-1) 10286 | -4/Zhirov | Zhirov requested help retrieving the SGEMP Prototype 10348 | -4/Zhirov | Entered Proximity Caves 10348 | -3/Proximity Caves | Accompanied by 1 ally 10533 | -3/Proximity Caves | Found Alien Artifact 10533 | -3/Proximity Caves | Identified Core Expander 10533 | -3/Proximity Caves | Installed Core Expander, added new Propulsion slot 10685 | -3/Proximity Caves | Discovered new exit (range 12) 10702 | -3/Proximity Caves | Entered Research 10702 | -3/Research | Evolved 2 slots: Utility x2 10703 | -3/Research | Loaded intel: 24 terminal locations 10740 | -3/Research | Found Prototype Device 10740 | -3/Research | Identified Exp. Thermal Shield 10839 | -3/Research | Identified exit to DSF 10841 | -3/Research | Entered DSF 10886 | -3/DSF | Additional patrols routed to DSF 10886 | -3/DSF | Identified Transdimensional Reconstructor 10886 | -3/DSF | Warped through subspace 10886 | -3/DSF | Discovered new exit (range 17) 10912 | -3/DSF | Entered Research 10912 | -2/Research | Evolved 2 slots: Utility x2 11103 | -2/Research | Spotted B-90 Cyclops 11177 | -2/Research | Build established: Hacker-Skirmisher 11422 | -2/Research | Spotted B-90 Cyclops 11445 | -2/Research | Destroyed B-90 Cyclops 11660 | -2/Research | Identified exit to Quarantine 11660 | -2/Research | Identified exit to Access 12000 | -2/Research | Destroyed 11 combat bots 12347 | -2/Research | Build established: Hacker-Mutant 12589 | -2/Research | Entered Access 12589 | -1/Access | Evolved 2 slots: Utility x2 12651 | -1/Access | Identified exit to Command 13206 | -1/Access | Entered Command 13863 | -1/Command | Phase Generator disabled 14004 | -1/Command | First assault squad dispatched 14143 | -1/Command | Spotted M Guard 14143 | -1/Command | Spotted M Guard 14143 | -1/Command | Spotted Combat Programmer 14156 | -1/Command | Spotted Combat Programmer 14176 | -1/Command | Destroyed Combat Programmer 14201 | -1/Command | Destroyed Combat Programmer 14234 | -1/Command | Destroyed M Guard 14246 | -1/Command | Lost 4 parts (1u3w) 14252 | -1/Command | All MAIN.C guards destroyed 14302 | -1/Command | Found Prototype Reactor 14302 | -1/Command | Identified Zero-point Reactor 14322 | -1/Command | Found Prototype Device 14322 | -1/Command | Identified Thermal Barrier 14513 | -1/Command | System corruption reached 10% 14636 | -1/Command | Found Prototype Energy Cannon 14720 | -1/Command | Met MAIN.C 14723 | -1/Command | Hacked MAIN.C using A7's code 14745 | -1/Command | 0b10 Conduit disabled 14832 | -1/Command | Destroyed MAIN.C Shell 14835 | -1/Command | MAIN.C activated Command garrisons 14914 | -1/Command | Destroyed MAIN.C 14931 | -1/Command | Spotted B-99 Colossus 14935 | -1/Command | Released all parts (16) 14938 | -1/Command | Discovered new exit (range 48) 14938 | -1/Command | Discovered new exit (range 102) 14938 | -1/Command | Identified Cld. Nova Cannon 14938 | -1/Command | Extracted map data and part IDs from MAIN.C's data core 14965 | -1/Command | Lost 11 parts (2p3n4u2w) 14971 | *** | Establishing 0b11! Last Messages --------------- 14939_ Acquired 20 matter. 14942_ System corrupted: Matter fused (-10). 14943_ Knocked back. 14943_ Penetrated by Slug. 14943_ Slug penetrates 0b10 Conduit. 14947_ Penetrated by Slug. 14947_ Slug penetrates Wall. 14947_ Slug penetrates Reinforced Barrier. 14947_ Penetrated by Slug. 14947_ Slug penetrates Wall. 14947_ Acquired 1 matter. 14950_ Penetrated by Slug. 14950_ Slug penetrates Wall. 14952_ B-99 Colossus activates siege mode. 14964_ System corrupted: Matter fused (-10). 14968_ Dropped Exp. Cooling System. 14969_ Dropped Adv. Terrain Scanner. 14969_ Dropped Cld. Nova Cannon. 14970_ Dropped Adv. Target Analyzer. 14970_ Dropped Exp. Cooling System. Map ----- +----------------------------------------------------+ | # # ""R"" # | | + # """" # ##+###### ############# | | # # # ####### ## #########?#?# | | # # # # # ## # #?#?# | | ################+## # # ## # #?#?# | | ??### # + # ## # #?#?? | | ###" # # # ## # #?### | | #"" "" # # # ## # #???? | | #"" "" # # # ## # #???? | | #"" "" # # # ## # #???? | | #"" T" # ####### ## # #???? | | #"T """ # #?????# ## # #???? | | #"" "" # ####### ## + #???? | | #"" # ## # ## # #???? | | #"" # ## # ## # #???? | | #"" # ## ######### # #???? | | #" # ## # #???? | | ### # s ### ########## + = #???? | | #?# # #?# #??# # # #???? | | #######+##### ### #??# # # #???? | | Y % s s #??# # ############# | | s #??# + | | ####### ############ #??# # | | ??????# #??# ## !#### # ############" | | ??????# #??# ## !!]## # # ####" | | ??????# #??# ## @!## # + # | | ??????# #??# ## ## + # # | | ??????# #??# ######## # # # | | ??????# #??# #??????# # # # | | ??????# #######+#######??# # # ##### | | ##????# #??#######^^# #???? | | #????# #????????# # #???? | | #????# #????????# + #???? | | #????# #####????# ## #???? | | #????# # ###### ## #???? | | #????# #### # ## #???? | | ####### ^^#??# # ######### #???? | | ^^#??########## ##???????# #???? | | ########## #???????????# #????????#########???? | | ?????????# #???????????# #????????????????????? | | ?????????# #???????????# #????????????????????? | | ##???#####+#####???????# #????????????????????? | | #???# #???????# #????????????????????? | | #???# #???????######????????????????????? | | #???# #?????????????????????????????????? | | #???# #?????????????????????????????????? | | ##???###########?????????????????????????????????? | | ?????????????????????????????????????????????????? | | ?????????????????????????????????????????????????? | | ?????????????????????????????????????????????????? | +----------------------------------------------------+ Best States ------------- Heat Dissipation 91 Energy Generation 53 Energy Capacity 1090 Matter Stores 540 Matter Capacity 550 Sight Range 22 Terrain Scan Range 20 Terrain Scan Density 210 Jamming Range 16 Base Temperature (-) 150 Corruption Block 20 Armor Coverage 450 Resistance: KI 30 Resistance: TH 50 Resistance: EM 25 Utility Shielding 90 Weapon Cycling 20 Evasion (%) 50 Targeting Accuracy 8 Target Analysis 12 Core Analysis 6 Recoil Reduction 6 Salvage Targeting 3 Offensive Hacking 24 Defensive Hacking 24 Item Schematics ----------------- Imp. Utility Shielding | -8/Materials | Scanalyzed Enh. Optical Array | -6/Factory | Hacked Assault Drone Bay | -4/Zhirov | Free Exp. Heat Sink | -4/Zhirov | Free Exp. Optical Array | -4/Zhirov | Free Imp. Arc Thrower | -4/Zhirov | Free Robot Schematics ------------------ None Fabricated ------------ Imp. Transmission Jammer | x1 | -7/Factory | Preloaded Alien Tech Used ----------------- Integrated Dissipator Core Expander Transdimensional Reconstructor Achievements -------------- Main Advantage Poison In The Code Challenges ------------ None Game ------ Seed QuantumKineticPropulsion Manual? 0 Play Time 03:58:56 Cumulative 725.7 hours Start 2022.07.03 @ 09:57:08 End 2022.07.03 @ 14:27:15 Sessions 11 Manual Loads 0 Difficulty Rogue Special Mode None Game No. 383 Rogue 256 Adventurer 125 Explorer 2 Win Type 1 Total 85 Types 72/6/4/1/1/0/0/0/1 Lore% 82 Gallery% 89 Achievement% 77 Wizard Run 0 Options --------- ASCII 0 Keyboard 1 Movement Numpad Keybinds 0 Fullscreen 1 Font 36/TerminusFine Map View 76x50 Tactical HUD 1 Map Filters NONE Filters NONE Steam 1 RUN: a458cc58-5733-4f4b-8b3e-af3a3a2ab5a0